[Event "21st Bangkok CC Open 2024"]
[Site "Bangkok"]
[Date "2024.04.19"]
[Round "7.6"]
[White "Badmatsyrenov, Oleg"]
[Black "Mitrabha, Guha"]
[Result "0-1"]
[ECO "C00"]
[WhiteElo "2410"]
[BlackElo "2537"]
[Annotator "TA"]
[PlyCount "114"]
[EventDate "2024.04.13"]
[EventType "swiss"]
[EventCountry "THA"]
[SourceTitle "playchess.com"]
[Source "ChessBase"]
[SourceQuality "1"]
[TimeControl "40/5400+30:1800+30"]

{[%evp 50,114,-25,-44,-20,-45,-32,-47,-46,-92,-51,-107,-82,-90,-88,-104,-106,-129,-119,-125,-127,-142,-139,-147,-131,-153,-147,-164,-156,-160,-154,-171,-147,-174,-158,-170,-177,-171,-186,-259,-267,-275,-275,-275,-275,-275,-274,-269,-263,-1272,-1186,-1139,-1091,-1224,-931,-1302,-1243,-5085,-5073,-5073,-4966,-5046,-4627,-4627,-4627,-29955,-3786]} 1. e4 {[%emt 0:00:03]} e6 {[%emt 0:15:42]} 2. Qe2 {[%emt 0:00:18]} c5 {[%emt 0:00:09]} 3. b3 {[%emt 0:00:04]} Nc6 {[%emt 0:00:04]} 4. Bb2 {[%emt 0:00:05]} Nd4 {[%emt 0:00:06]} 5. Qd3 {[%emt 0:00:40]} Ne7 {[%emt 0:00:02]} 6. Bxd4 {[%emt 0:00:17] C00: French: Unusual White 2nd moves.} cxd4 {[%emt 0:00:02]} 7. Qxd4 {[%emt 0:00:08]} f5 $146 {[%emt 0:00:02]} ({Predecessor:} 7... Nc6 8. Qb2 Qh4 9. d3 Bc5 10. c3 O-O 11. Nf3 Qg4 12. h3 Qg6 13. Nbd2 d5 {½-½ Rakhmatullaev,A (2424)-Yatzenko,A (2308) Moscow Aeroflot op-A 2024 (3)}) 8. exf5 {[%emt 0:05:24]} Nxf5 {[%emt 0:00:27]} 9. Qa4 {[%emt 0:00:44]} Bc5 {[%emt 0:03:49]} 10. Nc3 {[%emt 0:02:11]} O-O {[%emt 0:04:38]} 11. Nf3 {[%emt 0:00:28]} Nh4 {[%emt 0:01:39]} 12. O-O-O {[%emt 0:07:47]} Nxf3 {[%emt 0:02:20]} 13. gxf3 {[%emt 0:00:03]} d5 {[%emt 0:00:42]} 14. Rg1 {[%emt 0:04:13]} Qf6 {[%emt 0:03:57]} 15. Bd3 {[%emt 0:14:14]} Qd4 {[%emt 0:03:57]} 16. Rg4 {[%emt 0:03:23]} Qxa4 {[%emt 0:02:22]} 17. Nxa4 {[%emt 0:00:02]} Ba3+ {[%emt 0:01:01]} 18. Kb1 {[%emt 0:00:07]} Rxf3 {[%emt 0:00:07]} 19. Rdg1 {[%emt 0:05:50]} Bf8 {[%emt 0:00:23]} 20. R1g2 {[%emt 0:00:54]} Kh8 {[%emt 0:00:59]} 21. Nc3 {[%emt 0:05:26]} Bd7 {[%emt 0:01:58]} 22. Bb5 {[%emt 0:02:05]} Bc6 {[%emt 0:00:18]} 23. Bxc6 {[%emt 0:03:04]} bxc6 {[%emt 0:00:02]} 24. Ne2 {[%emt 0:00:18]} e5 {[%emt 0:00:41]} 25. c3 {[%emt 0:03:35]} Re8 {[%emt 0:01:07]} 26. Kc2 {[%emt 0:00:50]} Re7 {[%emt 0:00:54]} 27. Ng1 {[%emt 0:03:35]} Rf5 {[%emt 0:00:56]} 28. f3 {[%emt 0:00:13]} Ref7 {[%emt 0:00:09]} 29. Re2 {[%emt 0:01:02]} (29. Ra4 $15 {might be stronger.}) 29... Bc5 {[%emt 0:11:43]} 30. Re1 {[%emt 0:00:09]} (30. b4 $15 Bd6 31. d4) 30... Bf2 {[%emt 0:01:26]} 31. Re2 {[%emt 0:00:14]} Bb6 {[%emt 0:00:19]} 32. Re1 {[%emt 0:00:05]} Rh5 {[%emt 0:03:44]} 33. Rg2 {[%emt 0:00:55]} g6 {[%emt 0:03:17]} 34. b4 {[%emt 0:02:23]} Kg7 {[%emt 0:02:45]} 35. a4 {[%emt 0:00:37]} a6 {[%emt 0:01:25]} 36. b5 {[%emt 0:04:31]} axb5 {[%emt 0:00:39]} 37. axb5 {[%emt 0:00:01]} cxb5 {[%emt 0:00:07]} 38. Rb1 {[%emt 0:00:12]} Bxg1 {[%emt 0:00:48]} 39. Rgxg1 {[%emt 0:00:04]} Rxf3 {[%emt 0:01:00]} 40. Rxb5 {[%emt 0:00:23]} e4 {[%emt 0:01:01]} (40... Rxh2 41. Rxd5 e4 42. Re1 $17) 41. Re1 {[%emt 0:33:12]} Rd3 {[%emt 0:36:48]} (41... Rxh2 42. Rxd5 e3 43. Kd1) 42. Re2 {[%emt 0:00:12]} Rdh3 {[%emt 0:00:26]} 43. c4 {[%emt 0:00:34]} Rxh2 {[%emt 0:00:38]} (43... dxc4 44. Rb7+ Kf6 45. Rxe4) 44. Rxh2 {[%emt 0:04:41]} Rxh2 {[%emt 0:00:02]} 45. Rxd5 {[%emt 0:09:22]} e3 {[%emt 0:04:56]} 46. c5 {[%emt 0:00:04]} e2 {[%emt 0:00:40]} 47. Re5 {[%emt 0:00:04] [#]} Rh5 $1 {[%emt 0:00:04]} 48. Rxe2 {[%emt 0:00:03]} Rxc5+ {[%emt 0:00:04]} 49. Kb3 $2 {[%emt 0:00:05]} (49. Kd3) 49... h5 $19 {[%emt 0:00:33]} 50. d4 {[%emt 0:00:01]} Rc1 {[%emt 0:00:01]} 51. d5 {[%emt 0:01:32]} h4 {[%emt 0:00:59]} 52. Kb4 {[%emt 0:00:46]} g5 {[%emt 0:01:54]} 53. d6 {[%emt 0:00:35]} Rd1 {[%emt 0:01:15]} 54. Kc5 {[%emt 0:00:05]} h3 {[%emt 0:00:40]} 55. Kc6 {[%emt 0:03:45]} Kf6 {[%emt 0:01:13]} 56. d7 {[%emt 0:00:35]} g4 {[%emt 0:00:39]} 57. Re1 {[%emt 0:07:13]} Rd3 {[%emt 0:00:20]} (57... Rxe1 58. d8=Q+ (58. d8=R $2 {perishes.} h2 $19) 58... Kf5 59. Qf8+ Kg5 60. Qc5+ Kh6 61. Qf2 Re6+ (61... Rc1+ $2 62. Kd7 $18) 62. Kd5 $18) (57... Rxd7 $142 58. Kxd7 h2 59. Rh1 g3 60. Kd6 Kg5 (60... g2 61. Rxh2 g1=Q 62. Rh6+ Kg7 63. Re6 $19) 61. Ke5 Kg4 (61... g2 62. Rxh2 g1=Q 63. Re2 $19) 62. Ke6 Kh3 (62... g2 63. Rxh2 g1=Q 64. Re2 Qb6+ 65. Kf7 Qb3+ 66. Ke7 Qb7+ 67. Kd8 Qb6+ 68. Ke7 Kf5 69. Rc2 Qe3+ 70. Kf8 Qa7 71. Kg8 Qb7 72. Kf8 Kg6 73. Rf2 Qa7 74. Rf3 Qa8+ 75. Ke7 Qxf3 76. Kd7 Qd5+ 77. Kc8 Kf6 78. Kc7 Ke7 79. Kb6 Kd7 80. Ka7 Kc6 81. Kb8 Qb3+ 82. Kc8 Qg8#) 63. Ra1 g2 64. Ra7 g1=Q (64... h1=R 65. Rh7+ Kg3 66. Rg7+ Kf3 67. Rb7 g1=Q 68. Rb3+ Ke4 69. Rb4+ Kd3 70. Rb3+ Kc4 71. Rb2 Qg6+ 72. Ke5 Re1+ 73. Kf4 Rf1+ 74. Rf2 Rxf2+ 75. Ke5 Qf6+ 76. Ke4 Qf4#) 65. Rh7+ Kg4 66. Kd5 Qd1+ (66... h1=R 67. Rg7+ Kf4 68. Rxg1 Rxg1 69. Kd4 Rg5 70. Kd3 Rd5+ 71. Kc4 Ke4 72. Kc3 Rd4 73. Kc2 Rd3 74. Kc1 Ke3 75. Kc2 Ke2 76. Kb1 Kd2 77. Kb2 Re3 78. Ka1 Kc2 79. Ka2 Rh3 80. Ka1 Ra3#) (66... h1=Q+ 67. Rxh1 Qxh1+ 68. Kd6 Kf5 69. Kc5 Qe4 70. Kb5 Ke5 71. Kb6 Qd5 72. Kc7 Qb5 73. Kd8 Kd6 74. Kc8 Qb4 75. Kd8 Qb8#) 67. Ke5 Qe2+ (67... h1=R 68. Rxh1 Qxh1 69. Kd6 Qc1 70. Kd5 Qc3 71. Kd6 Kf5 72. Kd5 Qb4 73. Kc6 Ke6 74. Kc7 Qb5 75. Kc8 Kd6 76. Kd8 Qd7#) (67... Qa1+ 68. Ke6 Qa6+ 69. Ke5 Qe2+ 70. Kf6 Qf2+ 71. Kg7 Qa7+ 72. Kh8) 68. Kf6 Qf3+ (68... h1=Q 69. Rxh1 Qf3+ 70. Ke7 Qxh1 71. Kd6 Qe4 72. Kc7 Qd5 73. Kc8 Kf5 74. Kc7 Ke5 75. Kc8 Kd6 76. Kb8 Qb3+ 77. Kc8 Qb5 78. Kd8 Qd7#) 69. Kg7 h1=Q (69... h1=R 70. Rxh1 Qxh1 71. Kg6 Qe4+ 72. Kg7 Kf5 73. Kg8 Kf6 74. Kh8 Kg6 75. Kg8 Qe8#) 70. Rxh1 Qxh1 71. Kg6 Qe4+ 72. Kg7 Kf5 73. Kf7 Qb7+ 74. Ke8 Ke6 75. Kf8 Qf7#) 0-1

[Event "21st Bangkok CC Open 2024"]
[Site "Bangkok"]
[Date "2024.04.19"]
[Round "7.7"]
[White "Arfan, Aditya Bagus"]
[Black "Makhnev, Denis"]
[Result "0-1"]
[ECO "A09"]
[WhiteElo "2407"]
[BlackElo "2516"]
[Annotator "TA"]
[PlyCount "78"]
[EventDate "2024.04.13"]
[EventType "swiss"]
[EventCountry "THA"]
[SourceTitle "playchess.com"]
[Source "ChessBase"]
[SourceQuality "1"]
[TimeControl "40/5400+30:1800+30"]

{[%evp 19,78,14,24,19,11,9,7,0,15,-28,-16,-81,-41,-42,-52,-44,100,94,92,0,0,0,6,0,0,0,0,-47,-82,-163,0,-75,-83,-85,-68,-98,-86,-202,-219,-166,-157,-458,-430,-436,-377,-551,0,0,0,-203,-183,-183,-164,-1159,-779,-29976,-29962,-29989,-29990,-29992,-29993]} 1. Nf3 d5 {[%emt 0:05:20]} 2. c4 {[%emt 0:00:33]} d4 {[%emt 0:00:05]} 3. b4 {[%emt 0:00:05]} g5 {[%emt 0:00:09]} 4. h3 {[%emt 0:00:26]} h6 {[%emt 0:00:07]} 5. g3 {[%emt 0:00:47]} Bg7 {[%emt 0:00:18]} 6. d3 {[%emt 0:00:23] A09: Réti Opening: 1 Nf3 d5 2 c4.} e5 {[%emt 0:00:25]} 7. Nbd2 {[%emt 0:01:43]} Ne7 {[%emt 0:01:04]} 8. Bg2 {[%emt 0:00:14]} Ng6 {[%emt 0:01:31]} 9. a4 {[%emt 0:02:15]} Nd7 $146 {[%emt 0:08:42]} ({Predecessor:} 9... O-O 10. b5 Re8 11. Ba3 f5 12. O-O e4 13. Ne1 e3 14. Nb3 exf2+ 15. Rxf2 Re3 {0-1 Petrov,N (2561)-Indjic,A (2589) EU-ch Blitz Zagreb 2023 (10)}) 10. Ba3 {[%emt 0:03:01]} O-O {[%emt 0:07:34]} 11. b5 {[%emt 0:12:33]} Re8 {[%emt 0:00:08]} 12. Nb3 {[%emt 0:13:20]} f5 {[%emt 0:14:11]} 13. O-O {[%emt 0:09:00]} Nf6 {[%emt 0:00:54]} 14. Nfd2 {[%emt 0:12:31]} Rb8 {[%emt 0:01:29]} 15. Qc2 {[%emt 0:01:59]} (15. Nf3 $11) 15... h5 $1 $17 {[%emt 0:01:38]} 16. e3 {[%emt 0:04:52]} dxe3 {[%emt 0:15:12]} 17. fxe3 {[%emt 0:00:02]} h4 {[%emt 0:00:06]} (17... c6 $15 {keeps the upper hand.}) 18. g4 $1 $16 {[%emt 0:03:56]} fxg4 {[%emt 0:00:05]} 19. Ne4 {[%emt 0:15:49]} (19. d4 $1 $16 Nf8 (19... gxh3 20. Qxg6 hxg2 21. Rxf6 $16) 20. Ne4) 19... gxh3 $11 {[%emt 0:09:15]} 20. Nxf6+ {[%emt 0:00:45]} Bxf6 {[%emt 0:00:06]} 21. Bd5+ {[%emt 0:04:37]} Kg7 {[%emt 0:09:25]} 22. Nc5 {[%emt 0:07:21]} c6 {[%emt 0:00:06]} 23. bxc6 {[%emt 0:01:39]} (23. Be4 $11) 23... bxc6 $15 {[%emt 0:00:05]} 24. Bxc6 {[%emt 0:00:30] [#]} (24. Be4 $17) 24... g4 $2 {[%emt 0:02:53]} ({Better is} 24... Rf8 $1 $19 {And now ...Be7 would win.} 25. Ne4 (25. Be4 Be7) 25... Be7 26. Rxf8 Nxf8 (26... Qxf8 27. Rf1 $17) (26... Bxf8 27. Bxf8+ Qxf8 28. Rf1 $17) 27. Bxe7 Qxe7) 25. Ne4 {[%emt 0:02:33]} (25. Bxe8 $11 {keeps the balance.} Qxe8 26. Ne4) 25... Re6 $17 {[%emt 0:01:01]} 26. Bd5 {[%emt 0:00:15] [#]} Ra6 $1 {[%emt 0:00:05]} 27. Qe2 {[%emt 0:02:06]} Kh6 {[%emt 0:07:31]} 28. Bc5 {[%emt 0:00:41]} (28. Nc5 $17 g3 29. Nxa6 Bxa6 30. Be4) 28... Be7 $19 {[%emt 0:03:04]} 29. d4 {[%emt 0:00:26]} g3 {[%emt 0:01:13]} 30. Rf7 $2 {[%emt 0:00:18]} (30. Bxe7 $17 {is more resistant.} Nxe7 31. Nf6 h2+ 32. Kh1 Rxf6 33. Rxf6+ Kg5 34. Be4 Kxf6 35. Qh5) 30... Bxc5 $19 {[%emt 0:03:13]} 31. dxc5 {[%emt 0:00:19]} h2+ {[%emt 0:00:05]} (31... Be6 32. Bxe6 Rxe6 33. Qg4 $11) 32. Kg2 {[%emt 0:00:47] [#]} (32. Kh1 $142 Nh8 (32... Be6 $2 33. Bxe6 Rxe6 34. Qg4 $18) 33. Rff1) 32... Bd7 $2 {[%emt 0:06:50]} ({Don't blunder} 32... Be6 $2 33. Bxe6 Rxe6 34. Qg4 $18) (32... Nh8 $1 $19 {[%cal Rh8f7]} 33. Rff1 Rg6) 33. Raf1 $1 $11 {[%emt 0:00:22]} Be8 $1 {[%emt 0:00:42]} ({Stronger than} 33... Rxa4 34. Rh7+ (34. Nf6 Qxf6 35. R1xf6 h1=B+ 36. Kxh1 Ra1+ 37. Kg2 h3+ 38. Kxg3 Rg1+ 39. Kh2 Be8 $18) 34... Kxh7 35. Qh5+ Kg7 36. Rf7+ Kg8 37. Qh7#) 34. R7f5 $2 {[%emt 0:00:41]} (34. Nf6 $11 {and White stays safe.} Rxf6 (34... Bxf7 35. Qh5+ Kg7 36. Qh7+ Kf8 37. Qxf7#) 35. R7xf6) 34... Ne7 $1 $19 {[%emt 0:01:02]} 35. Rxe5 {[%emt 0:00:32]} Bg6 {[%emt 0:00:55]} 36. Qg4 $2 {[%emt 0:00:37]} (36. Kh3) 36... Nxd5 {[%emt 0:00:30]} 37. cxd5 {[%emt 0:00:24]} Rb2+ {[%emt 0:00:17]} 38. Nf2 {[%emt 0:01:08]} Qf6 {[%emt 0:00:31]} 39. Kh3 {[%emt 0:00:00]} Rxf2 {[%emt 0:00:19]} 0-1

[Event "21st Bangkok CC Open 2024"]
[Site "Bangkok"]
[Date "2024.04.19"]
[Round "7.8"]
[White "Samant Aditya S"]
[Black "Sek, Konstantin"]
[Result "1/2-1/2"]
[ECO "C70"]
[WhiteElo "2512"]
[BlackElo "2397"]
[Annotator "TA"]
[PlyCount "81"]
[EventDate "2024.04.13"]
[EventType "swiss"]
[EventCountry "THA"]
[SourceTitle "playchess.com"]
[Source "ChessBase"]
[SourceQuality "1"]
[TimeControl "40/5400+30:1800+30"]

{[%evp 9,81,28,45,32,33,26,29,32,42,24,46,33,54,39,35,25,26,38,47,17,17,24,25,29,14,2,21,18,24,16,43,0,0,0,0,0,0,0,0,0,0,0,0,0,0,0,44,44,45,30,45,31,60,10,35,33,40,29,18,0,22,0,4,0,0,0,0,0,0,0,0,0,0,0]} 1. e4 {[%emt 0:00:02]} e5 {[%emt 0:01:04]} 2. Nf3 {[%emt 0:00:06]} Nc6 {[%emt 0:00:14]} 3. Bb5 {[%emt 0:00:11]} a6 {[%emt 0:00:13]} 4. Ba4 Bc5 {[%emt 0:01:02]} 5. c3 {[%emt 0:00:49][%cal Bc2c3,Bc3d4][%mdl 32]} Nge7 {[%emt 0:00:12]} 6. d4 {[%emt 0:01:26]} exd4 {[%emt 0:00:09]} 7. cxd4 {[%emt 0:00:04]} Bb4+ {[%emt 0:00:09]} 8. Bd2 {[%emt 0:01:15] White has an edge.} Bxd2+ {[%emt 0:00:23]} 9. Qxd2 {[%emt 0:00:06]} d5 {[%emt 0:00:06]} 10. exd5 {[%emt 0:00:54]} Qxd5 {[%emt 0:00:57]} 11. Nc3 {[%emt 0:00:39]} Qe6+ {[%emt 0:00:07]} 12. Qe3 {[%emt 0:00:23]} O-O {[%emt 0:00:26]} 13. O-O {[%emt 0:17:02]} Qd6 {[%emt 0:00:50]} 14. Ne4 {[%emt 0:10:48]} Qd8 {[%emt 0:06:14]} (14... Qg6 {looks sharper.} 15. Rfe1 Be6 16. Qf4 b5) 15. Ng3 {[%emt 0:20:42]} Nd5 {[%emt 0:02:54]} 16. Qd2 {[%emt 0:01:11]} Nce7 {[%emt 0:00:17]} 17. Bc2 {[%emt 0:03:21]} b6 {[%emt 0:05:42]} 18. Rfe1 {[%emt 0:01:53]} Bb7 {[%emt 0:01:04]} 19. Rac1 {[%emt 0:04:51]} (19. Be4 {feels hotter.} Ng6 20. Ne5 Re8 21. Nh5) 19... Nf6 {[%emt 0:11:53]} 20. Ne4 {[%emt 0:10:53]} Nxe4 {[%emt 0:17:34]} 21. Bxe4 {[%emt 0:00:05]} Bxe4 {[%emt 0:00:06]} 22. Rxe4 {[%emt 0:00:04]} Nd5 {[%emt 0:02:31]} 23. Rce1 {[%emt 0:00:27]} Qd6 {[%emt 0:01:17]} 24. Qc2 {[%emt 0:02:02]} a5 {[%emt 0:03:41]} 25. a3 {[%emt 0:01:41]} h6 {[%emt 0:00:37]} 26. Re5 {[%emt 0:02:57]} Rad8 {[%emt 0:02:55]} 27. Nh4 {[%emt 0:08:15] [#] Black must now prevent Nf5.} Qf6 {[%emt 0:06:16]} 28. Nf5 {[%emt 0:05:37][%cal Oe5d5] And now Rxd5! would win.} Kh8 {[%emt 0:02:38]} 29. Qe4 {[%emt 0:01:34]} c6 {[%emt 0:01:14][%cal Bc7c6,Bc6d5][%mdl 32]} 30. h3 {[%emt 0:03:52]} a4 {[%emt 0:07:36]} 31. Ne3 {[%emt 0:02:05]} ({White should try} 31. Rc1 $14) 31... Qd6 {[%emt 0:07:47]} 32. Nxd5 {[%emt 0:00:31]} cxd5 {[%emt 0:00:02]} 33. Qf5 {[%emt 0:00:38]} Qc6 {[%emt 0:00:26]} 34. Re7 {[%emt 0:00:30] The position is equal.} Kg8 {[%emt 0:00:25]} 35. Qf4 {[%emt 0:00:32]} Qb5 {[%emt 0:02:28]} 36. R1e2 {[%emt 0:00:31]} Rde8 {[%emt 0:00:30]} 37. Rxe8 {[%emt 0:00:27]} Rxe8 {[%emt 0:00:01]} 38. Rxe8+ {[%emt 0:00:02]} Qxe8 {[%emt 0:00:02]} 39. Qf5 {[%emt 0:00:55]} Qb5 {[%emt 0:01:16]} 40. Qc8+ {[%emt 0:00:18]} Kh7 {[%emt 0:00:08]} 41. Qf5+ {[%emt 0:02:08] Weighted Error Value: White=0.09 (flawless) /Black=0.08 (flawless) .  Mistake:       	White=1     	---        Inaccurate:     	White=2     	Black=3      OK:         	White=9     	Black=15     Best:        	---       	Black=1} 1/2-1/2

[Event "21st Bangkok CC Open 2024"]
[Site "Bangkok"]
[Date "2024.04.19"]
[Round "7.9"]
[White "Hari Madhavan N B"]
[Black "Lalit Babu M R"]
[Result "0-1"]
[ECO "E10"]
[WhiteElo "2395"]
[BlackElo "2508"]
[Annotator "TA"]
[PlyCount "78"]
[EventDate "2024.04.13"]
[EventType "swiss"]
[EventCountry "THA"]
[SourceTitle "playchess.com"]
[Source "ChessBase"]
[SourceQuality "1"]
[TimeControl "40/5400+30:1800+30"]

{[%evp 9,78,45,30,23,19,26,25,27,17,21,33,23,20,32,20,0,0,0,0,0,0,-5,29,0,33,-112,-112,-101,-22,-60,-49,-47,-48,-42,-6,-53,-57,-56,-31,-29,-30,-38,0,-41,0,0,0,0,52,49,39,59,48,62,151,150,157,36,48,39,74,92,98,-25,-23,-150,-131,-1028,-1012,-29988,-29989]} 1. d4 {[%emt 0:06:14]} Nf6 {[%emt 0:00:52]} 2. c4 {[%emt 0:00:06]} e6 {[%emt 0:00:05]} 3. Nf3 {[%emt 0:00:04]} h6 {[%emt 0:00:08]} 4. g3 {[%emt 0:00:33]} d5 {[%emt 0:00:06]} 5. Bg2 {[%emt 0:00:04]} Bd6 {[%emt 0:00:06]} 6. O-O {[%emt 0:00:19]} O-O {[%emt 0:00:06]} 7. Qc2 {[%emt 0:05:18]} b6 {[%emt 0:00:26]} 8. cxd5 {[%emt 0:00:29] White has an edge.} exd5 {[%emt 0:01:34]} 9. Nc3 {[%emt 0:00:07]} Bb7 {[%emt 0:14:26]} 10. Nb5 {[%emt 0:08:02]} Nc6 {[%emt 0:00:23]} 11. Nxd6 {[%emt 0:17:50]} cxd6 {[%emt 0:00:08]} 12. b3 {[%emt 0:00:37]} Re8 {[%emt 0:01:36]} 13. Qb2 {[%emt 0:02:53]} Ba6 {[%emt 0:12:45]} 14. Re1 {[%emt 0:00:55]} Qd7 {[%emt 1:04:49]} 15. Bf4 {[%emt 0:09:05]} g5 {[%emt 0:00:00]} 16. Be3 {[%emt 0:19:26]} Ng4 {[%emt 0:00:00]} 17. Rac1 {[%emt 0:02:47]} (17. Bc1 $14 {stays ahead.}) 17... Nxe3 $17 {[%emt 0:00:00]} 18. fxe3 {[%emt 0:00:15]} Ne7 {[%emt 0:00:00]} (18... Rxe3 $17 {...Rae8 would now be deadly.} 19. Nxg5 hxg5 20. Bxd5 Bb7) 19. Qd2 {[%emt 0:01:10]} Qe6 {[%emt 0:00:00]} 20. Rc3 $1 {[%emt 0:00:52]} Kg7 {[%emt 0:00:00]} 21. Rec1 {[%emt 0:01:13]} Ng8 {[%emt 0:00:00]} 22. Ne1 {[%emt 0:01:00]} (22. e4 $11) 22... Nf6 $15 {[%emt 0:00:00]} 23. Nc2 {[%emt 0:00:06]} Ne4 {[%emt 0:00:00]} 24. Bxe4 {[%emt 0:00:09]} Qxe4 {[%emt 0:00:00]} 25. Nb4 {[%emt 0:01:18]} Bb5 {[%emt 0:00:00]} 26. a4 {[%emt 0:03:58]} Bd7 {[%emt 0:00:00]} 27. Qc2 {[%emt 0:03:46]} Qg4 {[%emt 0:00:00]} 28. Nxd5 {[%emt 0:06:01]} Rac8 {[%emt 0:00:00] [#]} (28... Bf5 $1 $11 29. Qd1 Rab8) 29. e4 $1 $14 {[%emt 0:03:18]} Rxc3 {[%emt 0:00:00]} 30. Nxc3 {[%emt 0:00:06]} d5 {[%emt 0:00:00][%cal Rd5e4]} 31. Rf1 {[%emt 0:02:35]} (31. exd5 Qxd4+ 32. Kg2 Re3 $17) (31. Nxd5 Qxe4 (31... Rxe4 32. Nc3 $11) 32. Qxe4 Rxe4 $11) 31... dxe4 {[%emt 0:00:00]} (31... f5 $14) 32. Nd5 $16 {[%emt 0:00:11] Strongly threatening Nf6.} f5 {[%emt 0:00:00][%cal Bf7f5,Bf5f4][%mdl 32]} 33. Ne3 {[%emt 0:03:38]} (33. Qc7 $16 f4 34. Qxa7) 33... Qh3 $1 $14 {[%emt 0:00:00][%cal Of5f4]} (33... Rc8 $2 34. Qxc8 Bxc8 35. Nxg4 $18) 34. d5 {[%emt 0:01:00]} f4 {[%emt 0:00:00]} 35. Qc3+ {[%emt 0:00:05]} (35. gxf4 $2 {is the wrong capture.} Qxe3+ 36. Kh1 Rf8 $19 (36... gxf4 37. Qc7 $11)) 35... Kh7 {[%emt 0:00:00]} 36. Nc4 {[%emt 0:00:41]} (36. gxf4 $16 gxf4 37. Rxf4 Rg8+ 38. Kh1) 36... Rf8 $36 {[%emt 0:00:00][%mdl 2048] ( -> ...fxg3). Black has the initiative.} 37. Rf2 {[%emt 0:00:53] [#]} (37. Nd2 $11) 37... e3 $1 $17 {[%emt 0:00:00]} 38. Rf3 {[%emt 0:01:35][%mdl 8192] [#]} (38. Nxe3 $17 fxg3 39. hxg3 (39. Rxf8 $2 {gets mated.} Qxh2+ 40. Kf1 Qh1#) (39. Qd3+ $2 Bf5 $19) 39... Qxg3+ 40. Rg2) 38... fxg3 $1 $19 {[%emt 0:00:00]} 39. hxg3 {[%emt 0:00:09]} (39. Qd3+ Bf5) 39... Rxf3 {[%emt 0:00:00] Quite a comeback for Black.   Weighted Error Value: White=0.60/Black=0.15 (very precise) .  Loses game:     	White=1     	---        Mistake:       	White=5     	Black=3      Inaccurate:     	White=4     	Black=6      OK:         	White=10    	Black=6      Best:        	White=1     	Black=3      Strong:       	White=1     	Black=2} 0-1

[Event "21st Bangkok CC Open 2024"]
[Site "Bangkok"]
[Date "2024.04.19"]
[Round "7.10"]
[White "Chernyavsky, Alexander"]
[Black "Sengupta, Deep"]
[Result "0-1"]
[ECO "E01"]
[WhiteElo "2354"]
[BlackElo "2500"]
[Annotator "TA"]
[PlyCount "62"]
[EventDate "2024.04.13"]
[EventType "swiss"]
[EventCountry "THA"]
[SourceTitle "playchess.com"]
[Source "ChessBase"]
[SourceQuality "1"]
[TimeControl "40/5400+30:1800+30"]

{[%evp 13,62,0,25,10,27,-5,13,0,8,0,0,-182,-179,-179,-69,-58,-58,-178,-181,-148,-148,-213,-179,-182,-179,-179,-118,-118,-111,-121,-3,-27,0,0,0,0,0,0,0,-300,-318,-353,-350,-968,-943,-5029,-2650,-29951,-29961,-29971,-29971]} 1. d4 {[%emt 0:00:03]} d5 {[%emt 0:01:12]} 2. c4 {[%emt 0:00:33]} c6 {[%emt 0:00:05]} 3. Nc3 {[%emt 0:00:04]} Nf6 {[%emt 0:00:04]} 4. Nf3 {[%emt 0:00:27]} e6 {[%emt 0:00:16]} 5. g3 {[%emt 0:00:16]} dxc4 {[%emt 0:01:52]} 6. Bg2 {[%emt 0:00:05]} Nbd7 {[%emt 0:00:38]} 7. O-O {[%emt 0:00:24]} Bb4 {[%emt 0:00:24]} 8. Qc2 {[%emt 0:06:06][%mdl 1024] White has compensation.} O-O {[%emt 0:00:53]} 9. e4 {[%emt 0:04:18]} h6 {[%emt 0:27:31]} 10. e5 {[%emt 0:12:47] The position is equal.} Nd5 {[%emt 0:00:06]} 11. Ne4 {[%emt 0:03:22]} b5 {[%emt 0:00:16]} 12. Neg5 $2 {[%emt 0:01:46]} hxg5 $19 {[%emt 0:08:06]} 13. Nxg5 {[%emt 0:00:05] [#]} f5 {[%emt 0:00:04]} (13... g6 $1 $19 {Threatens to win with ...N7b6.} 14. h4 N7b6) 14. Nxe6 $15 {[%emt 0:00:54]} (14. a3 Be7 15. Nxe6 Qe8 16. Bxd5 cxd5 $19) 14... Qe7 {[%emt 0:00:16]} 15. Bxd5 {[%emt 0:14:48]} ({Only move:} 15. Nxf8 $15 Qxf8 (15... Nxf8 16. a3 $11) 16. a4 (16. Bxd5+ cxd5 17. Bf4 Qe8 $19)) 15... cxd5 $19 {[%emt 0:00:16]} 16. Nf4 {[%emt 0:01:50]} Bb7 {[%emt 0:11:25]} 17. Ng6 {[%emt 0:04:01] Prevents Ba5} (17. a3 Bc5 18. e6 Bxd4 19. exd7 Qxd7) (17. a4 $17) 17... Qe6 {[%emt 0:04:37]} 18. Nxf8 {[%emt 0:00:23]} Rxf8 {[%emt 0:06:26]} 19. a4 {[%emt 0:01:02] White is weak on the light squares} Ba5 {[%emt 0:12:21]} ({Black should play} 19... a6 $19 20. axb5 axb5) 20. axb5 $17 {[%emt 0:01:25]} Bb6 {[%emt 0:00:04] Black is more active.} 21. Rd1 {[%emt 0:00:27] [#]} Nxe5 {[%emt 0:18:50]} 22. Qe2 $11 {[%emt 0:06:13] [#]} f4 $1 {[%emt 0:00:08]} 23. Bxf4 {[%emt 0:11:13]} (23. Qxe5 $2 Qxe5 24. dxe5 fxg3 $19) 23... Rxf4 {[%emt 0:00:09]} 24. gxf4 {[%emt 0:00:12]} Qg6+ {[%emt 0:00:30]} 25. Kf1 $1 {[%emt 0:01:19]} Nd3 {[%emt 0:03:22][%cal Ob7c8] Strongly threatening ...Bc8! Chess con chili.} 26. Qe3 $2 {[%emt 0:01:15][%mdl 8192]} (26. Re1 $1 $11 {and White has nothing to worry.} Kh7 (26... Bxd4 27. Qe8+ Kh7 28. Qxg6+ Kxg6 29. Re7 $14) 27. Qe6 Nxe1 28. Qh3+ Kg8 29. Rxe1) 26... Bc8 $1 $19 {[%emt 0:01:20]} (26... Nxb2 27. Re1 Nd3 28. Qe8+ Kh7 29. Qxg6+ Kxg6 30. Re8 $16) 27. Ra3 {[%emt 0:02:45]} Bf5 {[%emt 0:01:18]} (27... Nxb2 28. Re1 Kh7 29. Qe8 $17) 28. Rda1 $2 {[%emt 0:01:04]} (28. Qf3 Qe6 (28... Bxd4 29. Qxd5+ Qe6 30. Qxe6+ Bxe6 31. Rd2 $15) 29. Qe3) 28... Qh5 {[%emt 0:00:27][%cal Ob6d4]} 29. Kg1 {[%emt 0:06:20]} Be4 {[%emt 0:01:02][%cal Ob6d4] ( -> ...Bxd4!). A strong pair of Bishops.} (29... Nxb2 $2 30. h3 c3 31. Qe5 $19 (31. Rxc3 $2 {loses.} Nd1 $19)) 30. h3 {[%emt 0:04:48] [#]} Bxd4 $1 {[%emt 0:00:45][%mdl 512]} 31. Qxd4 {[%emt 0:04:33]} Qxh3 {[%emt 0:00:07] Weighted Error Value: White=1.00/Black=0.37.  Loses game:     	White=2     	---        Mistake:       	White=3     	Black=3      Inaccurate:     	White=2     	---        OK:         	White=6     	Black=7      Best:        	White=2     	Black=3      Strong:       	White=1     	Black=1} (31... Nxf4 $2 {too greedy.} 32. Qxa7 (32. Rxa7 {gets mated.} Ne2+ 33. Kf1 Nxd4 34. R7a3 Bd3+ 35. Rxd3 cxd3 36. Kg2 Qf3+ 37. Kh2 Qxf2+ 38. Kh1 Nf3 39. Ra8+ Kh7) 32... Ne2+ 33. Kf1 $18) 0-1